[Event "Late-Titled-Tuesday-Blitz-March-12-2024"]
[Site "Chess.com"]
[Date "2024.03.12"]
[Round "6"]
[White "subham777"]
[Black "olgerts_indricans"]
[Result "1/2-1/2"]
[WhiteElo "2555"]
[BlackElo "2411"]
[TimeControl "180+1"]
[EndTime "15:06:28 PDT"]
[Termination "Game drawn by agreement"]

1. e4 {[%clk 0:03:00.1]} 1... c5 {[%clk 0:03:00.1]} 2. Nf3 {[%clk 0:02:59.4]}
2... e6 {[%clk 0:02:58.7]} 3. g3 {[%clk 0:02:59.1]} 3... Nf6 {[%clk 0:02:57.8]}
4. d3 {[%clk 0:02:56.7]} 4... Nc6 {[%clk 0:02:57.7]} 5. Bg2 {[%clk 0:02:55.8]}
5... Be7 {[%clk 0:02:58.1]} 6. O-O {[%clk 0:02:55.8]} 6... Qc7 {[%clk
0:02:58.6]} 7. Re1 {[%clk 0:02:56.5]} 7... d6 {[%clk 0:02:58.3]} 8. d4 {[%clk
0:02:55.6]} 8... cxd4 {[%clk 0:02:57.2]} 9. Nxd4 {[%clk 0:02:56.5]} 9... a6
{[%clk 0:02:56.3]} 10. c4 {[%clk 0:02:56.6]} 10... Ne5 {[%clk 0:02:53]} 11. b3
{[%clk 0:02:54.2]} 11... O-O {[%clk 0:02:52.9]} 12. f4 {[%clk 0:02:52.3]} 12...
Ned7 {[%clk 0:02:53.1]} 13. Bb2 {[%clk 0:02:51.9]} 13... Rb8 {[%clk 0:02:53]}
14. Kh1 {[%clk 0:02:44.1]} 14... Rd8 {[%clk 0:02:51.4]} 15. Nd2 {[%clk
0:02:40.7]} 15... Nc5 {[%clk 0:02:47.4]} 16. Qe2 {[%clk 0:02:39.5]} 16... Bf8
{[%clk 0:02:40]} 17. Rad1 {[%clk 0:02:39]} 17... Bd7 {[%clk 0:02:35.7]} 18. g4
{[%clk 0:02:39.4]} 18... e5 {[%clk 0:02:32.6]} 19. Nf5 {[%clk 0:02:34.4]} 19...
g6 {[%clk 0:02:19.7]} 20. g5 {[%clk 0:02:30.2]} 20... Nh5 {[%clk 0:02:19.4]} 21.
fxe5 {[%clk 0:02:27.4]} 21... dxe5 {[%clk 0:02:08.6]} 22. Nh6+ {[%clk
0:02:14.3]} 22... Bxh6 {[%clk 0:02:03.3]} 23. gxh6 {[%clk 0:02:13.6]} 23... Nf4
{[%clk 0:01:58.6]} 24. Qf1 {[%clk 0:02:04.6]} 24... Ncd3 {[%clk 0:01:57]} 25.
Bc3 {[%clk 0:02:02.9]} 25... Nxe1 {[%clk 0:01:56.5]} 26. Rxe1 {[%clk 0:02:03.8]}
26... b5 {[%clk 0:01:42.8]} 27. Nf3 {[%clk 0:02:03.4]} 27... f6 {[%clk
0:01:40.4]} 28. Rc1 {[%clk 0:01:52.2]} 28... bxc4 {[%clk 0:01:40.3]} 29. bxc4
{[%clk 0:01:52]} 29... Bg4 {[%clk 0:01:40.1]} 30. c5 {[%clk 0:01:46.3]} 30...
Be6 {[%clk 0:01:03.7]} 31. Qxa6 {[%clk 0:01:18.6]} 31... Ra8 {[%clk 0:01:03.6]}
32. Qb6 {[%clk 0:01:12.8]} 32... Qxb6 {[%clk 0:00:54]} 33. cxb6 {[%clk
0:01:13.7]} 33... Rdb8 {[%clk 0:00:51.8]} 34. Rb1 {[%clk 0:01:03.3]} 34... Rxa2
{[%clk 0:00:48.5]} 35. Nxe5 {[%clk 0:00:41.2]} 35... Nxg2 {[%clk 0:00:47.4]} 36.
Nc6 {[%clk 0:00:41]} 36... Rxb6 {[%clk 0:00:36.8]} 37. Rxb6 {[%clk 0:00:33.1]}
37... Nf4 {[%clk 0:00:35.2]} 38. Rb8+ {[%clk 0:00:13.8]} 38... Kf7 {[%clk
0:00:35.8]} 39. Rb7+ {[%clk 0:00:14]} 39... Ke8 {[%clk 0:00:35.7]} 40. Re7+
{[%clk 0:00:11.9]} 40... Kf8 {[%clk 0:00:35.3]} 41. Rxh7 {[%clk 0:00:07.9]}
41... Rc2 {[%clk 0:00:34.9]} 42. Bb4+ {[%clk 0:00:07.6]} 42... Kg8 {[%clk
0:00:35]} 43. Rg7+ {[%clk 0:00:07.3]} 43... Kh8 {[%clk 0:00:35.4]} 44. Kg1
{[%clk 0:00:04.6]} 44... Bc4 {[%clk 0:00:28.5]} 45. Ne7 {[%clk 0:00:02.5]} 45...
Rg2+ {[%clk 0:00:25.6]} 46. Kh1 {[%clk 0:00:02.7]} 46... Rg5 {[%clk 0:00:23.2]}
47. h4 {[%clk 0:00:02.9]} 47... Rg4 {[%clk 0:00:22.8]} 48. h5 {[%clk 0:00:02.8]}
48... Nxh5 {[%clk 0:00:21.7]} 49. Nxg6+ {[%clk 0:00:02.7]} 49... Rxg6 {[%clk
0:00:22.1]} 50. Rxg6 {[%clk 0:00:03.6]} 50... Bd3 {[%clk 0:00:21.4]} 51. Rg7
{[%clk 0:00:03.9]} 51... Nxg7 {[%clk 0:00:21.1]} 52. hxg7+ {[%clk 0:00:03.9]}
52... Kxg7 {[%clk 0:00:22]} 53. Bc3 {[%clk 0:00:04.5]} 53... Bxe4+ {[%clk
0:00:21.9]} 54. Kh2 {[%clk 0:00:05.4]} 54... Kg6 {[%clk 0:00:22.5]} 55. Kg3
{[%clk 0:00:06.3]} 55... f5 {[%clk 0:00:22.8]} 56. Kf4 {[%clk 0:00:06.8]} 56...
Bb7 {[%clk 0:00:23.7]} 57. Bd4 {[%clk 0:00:07.3]} 57... Bc8 {[%clk 0:00:24.6]}
58. Bc3 {[%clk 0:00:08.1]} 58... Bb7 {[%clk 0:00:25.5]} 59. Bd4 {[%clk
0:00:08.8]} 59... Be4 {[%clk 0:00:26.4]} 60. Bc3 {[%clk 0:00:09.6]} 60... Kh5
{[%clk 0:00:27.3]} 61. Bd4 {[%clk 0:00:10]} 61... Kh4 {[%clk 0:00:28.2]} 62. Bc3
{[%clk 0:00:10.7]} 62... Kh3 {[%clk 0:00:29.1]} 63. Bb2 {[%clk 0:00:11.4]} 63...
Kg2 {[%clk 0:00:30]} 64. Ba1 {[%clk 0:00:12.2]} 64... Kf1 {[%clk 0:00:30.9]} 65.
Bb2 {[%clk 0:00:13]} 65... Ke2 {[%clk 0:00:31.8]} 66. Bg7 {[%clk 0:00:13.8]}
66... Kd3 {[%clk 0:00:32.7]} 67. Bh8 {[%clk 0:00:14.7]} 67... Bd5 {[%clk
0:00:33.3]} 68. Bg7 {[%clk 0:00:15.6]} 68... Be4 {[%clk 0:00:34.2]} 69. Bh8
{[%clk 0:00:16.5]} 69... Kc4 {[%clk 0:00:34.3]} 70. Bg7 {[%clk 0:00:17.4]} 70...
Bd3 {[%clk 0:00:34.8]} 71. Bh8 {[%clk 0:00:18.3]} 71... Be4 {[%clk 0:00:35.7]}
72. Bg7 {[%clk 0:00:17.7]} 1/2-1/2

[Event "Late-Titled-Tuesday-Blitz-March-12-2024"]
[Site "Chess.com"]
[Date "2024.03.12"]
[Round "6"]
[White "JSPrepz"]
[Black "Rud_Makarian"]
[Result "1-0"]
[WhiteElo "2843"]
[BlackElo "3037"]
[TimeControl "180+1"]
[EndTime "15:06:30 PDT"]
[Termination "JSPrepz won on time"]

1. e4 {[%clk 0:03:00.9]} 1... c5 {[%clk 0:02:59.8]} 2. Nf3 {[%clk 0:03:01.3]}
2... d6 {[%clk 0:02:59.8]} 3. Nc3 {[%clk 0:03:00.8]} 3... Nc6 {[%clk 0:02:59.4]}
4. d4 {[%clk 0:03:00.3]} 4... cxd4 {[%clk 0:03:00.3]} 5. Nxd4 {[%clk 0:03:01.2]}
5... Nf6 {[%clk 0:03:01]} 6. Bg5 {[%clk 0:03:01.3]} 6... Bd7 {[%clk 0:03:01.1]}
7. Bb5 {[%clk 0:03:02]} 7... e6 {[%clk 0:03:00.1]} 8. Qd3 {[%clk 0:03:00.5]}
8... Be7 {[%clk 0:02:57.1]} 9. O-O-O {[%clk 0:02:58.3]} 9... O-O {[%clk
0:02:46]} 10. Bxc6 {[%clk 0:02:46.2]} 10... bxc6 {[%clk 0:02:43.6]} 11. Nb3
{[%clk 0:02:46.7]} 11... d5 {[%clk 0:02:39.4]} 12. e5 {[%clk 0:02:41.8]} 12...
Ne8 {[%clk 0:02:38]} 13. Bxe7 {[%clk 0:02:37.9]} 13... Qxe7 {[%clk 0:02:38.9]}
14. Qe3 {[%clk 0:02:37.7]} 14... Nc7 {[%clk 0:02:26.6]} 15. Nc5 {[%clk
0:02:34.1]} 15... Rfb8 {[%clk 0:02:21.8]} 16. f4 {[%clk 0:02:29]} 16... a5
{[%clk 0:02:18.5]} 17. h4 {[%clk 0:02:21.4]} 17... Na6 {[%clk 0:02:01.4]} 18.
Nxa6 {[%clk 0:02:04]} 18... Rxa6 {[%clk 0:02:02.3]} 19. Na4 {[%clk 0:01:58.2]}
19... c5 {[%clk 0:01:56.3]} 20. Nxc5 {[%clk 0:01:48.6]} 20... Rab6 {[%clk
0:01:56.6]} 21. b3 {[%clk 0:01:45.5]} 21... a4 {[%clk 0:01:57.1]} 22. h5 {[%clk
0:01:41.9]} 22... axb3 {[%clk 0:01:53.3]} 23. axb3 {[%clk 0:01:39.9]} 23... Rc6
{[%clk 0:01:46.6]} 24. Nxd7 {[%clk 0:01:34]} 24... Qxd7 {[%clk 0:01:45.5]} 25.
Rh3 {[%clk 0:01:27.4]} 25... Qc7 {[%clk 0:01:37.3]} 26. Rd2 {[%clk 0:01:18.8]}
26... h6 {[%clk 0:01:28.1]} 27. Rg3 {[%clk 0:01:16.4]} 27... Qa5 {[%clk
0:01:24.7]} 28. Qd4 {[%clk 0:01:16.5]} 28... Rb4 {[%clk 0:01:18.3]} 29. Qb2
{[%clk 0:01:10.5]} 29... Rxf4 {[%clk 0:00:59.6]} 30. Rf3 {[%clk 0:01:07.1]}
30... Rh4 {[%clk 0:00:57.8]} 31. Rd1 {[%clk 0:00:59.1]} 31... Rxh5 {[%clk
0:00:55.2]} 32. Rdf1 {[%clk 0:00:59.4]} 32... Rg5 {[%clk 0:00:51.8]} 33. g3
{[%clk 0:00:49.1]} 33... Rg4 {[%clk 0:00:44.1]} 34. Kb1 {[%clk 0:00:44.5]} 34...
Rc7 {[%clk 0:00:39.7]} 35. Re3 {[%clk 0:00:35.4]} 35... d4 {[%clk 0:00:37.7]}
36. Rd3 {[%clk 0:00:29.3]} 36... Qxe5 {[%clk 0:00:36.8]} 37. b4 {[%clk
0:00:22.9]} 37... Qb5 {[%clk 0:00:28.9]} 38. Rfd1 {[%clk 0:00:21.7]} 38... e5
{[%clk 0:00:27.9]} 39. Rb3 {[%clk 0:00:20.8]} 39... Rg6 {[%clk 0:00:27.2]} 40.
Re1 {[%clk 0:00:18.5]} 40... Rgc6 {[%clk 0:00:26]} 41. g4 {[%clk 0:00:13.2]}
41... Kh7 {[%clk 0:00:21.9]} 42. Rd1 {[%clk 0:00:10.8]} 42... f6 {[%clk
0:00:21.8]} 43. Rd2 {[%clk 0:00:11.2]} 43... Rc3 {[%clk 0:00:17.8]} 44. Rd1
{[%clk 0:00:09.5]} 44... Qe2 {[%clk 0:00:13.9]} 45. Rc1 {[%clk 0:00:09.2]} 45...
Rxb3 {[%clk 0:00:13.5]} 46. Qxb3 {[%clk 0:00:09.1]} 46... Rc3 {[%clk 0:00:14]}
47. Qa4 {[%clk 0:00:09.1]} 47... d3 {[%clk 0:00:14.3]} 48. cxd3 {[%clk
0:00:06.2]} 48... Qxd3+ {[%clk 0:00:14.9]} 49. Kb2 {[%clk 0:00:06.7]} 49... Qd2+
{[%clk 0:00:15.1]} 50. Rc2 {[%clk 0:00:07.3]} 50... Rxc2+ {[%clk 0:00:06.4]} 51.
Qxc2+ {[%clk 0:00:08.2]} 51... Qxc2+ {[%clk 0:00:06.7]} 52. Kxc2 {[%clk
0:00:09.1]} 52... f5 {[%clk 0:00:06.9]} 53. b5 {[%clk 0:00:03.6]} 53... fxg4
{[%clk 0:00:07.1]} 54. Kd3 {[%clk 0:00:03.4]} 54... g3 {[%clk 0:00:05.7]} 55.
Ke2 {[%clk 0:00:03.3]} 55... e4 {[%clk 0:00:06.2]} 56. b6 {[%clk 0:00:02.5]} 1-0

[Event "Late-Titled-Tuesday-Blitz-March-12-2024"]
[Site "Chess.com"]
[Date "2024.03.12"]
[Round "6"]
[White "the_blue_pill"]
[Black "Svet_1502"]
[Result "1-0"]
[WhiteElo "2459"]
[BlackElo "2232"]
[TimeControl "180+1"]
[EndTime "15:06:32 PDT"]
[Termination "the_blue_pill won on time"]

1. b3 {[%clk 0:03:00.9]} 1... e5 {[%clk 0:02:58.5]} 2. Bb2 {[%clk 0:03:01.2]}
2... Nc6 {[%clk 0:02:54.9]} 3. c4 {[%clk 0:03:01.8]} 3... Nf6 {[%clk 0:02:49.8]}
4. e3 {[%clk 0:03:02.4]} 4... Bd6 {[%clk 0:02:47.9]} 5. Nc3 {[%clk 0:03:00.6]}
5... O-O {[%clk 0:02:47.2]} 6. a3 {[%clk 0:03:01]} 6... a5 {[%clk 0:02:46.6]} 7.
Qc2 {[%clk 0:03:01.5]} 7... Re8 {[%clk 0:02:45.2]} 8. d3 {[%clk 0:02:56.8]} 8...
Bf8 {[%clk 0:02:31.9]} 9. Nf3 {[%clk 0:02:51.6]} 9... d6 {[%clk 0:02:30.9]} 10.
Be2 {[%clk 0:02:50]} 10... Bf5 {[%clk 0:02:18.4]} 11. Ne4 {[%clk 0:02:42.2]}
11... Bxe4 {[%clk 0:01:47.9]} 12. dxe4 {[%clk 0:02:41.8]} 12... Qc8 {[%clk
0:01:26.2]} 13. h3 {[%clk 0:02:38]} 13... Nd8 {[%clk 0:01:21]} 14. O-O {[%clk
0:02:32.3]} 14... Ne6 {[%clk 0:01:20]} 15. b4 {[%clk 0:02:27.8]} 15... b6 {[%clk
0:01:11.5]} 16. Nd2 {[%clk 0:02:18.1]} 16... Qb7 {[%clk 0:01:02.4]} 17. Bd3
{[%clk 0:02:10.4]} 17... axb4 {[%clk 0:01:00.6]} 18. axb4 {[%clk 0:02:10]} 18...
Rxa1 {[%clk 0:00:59.1]} 19. Rxa1 {[%clk 0:02:10.9]} 19... Ra8 {[%clk 0:00:57.4]}
20. Qb1 {[%clk 0:02:03.4]} 20... Ra7 {[%clk 0:00:45.6]} 21. Bc3 {[%clk
0:01:58.4]} 21... Qa8 {[%clk 0:00:43.2]} 22. Rxa7 {[%clk 0:01:53.9]} 22... Qxa7
{[%clk 0:00:44.1]} 23. Qa1 {[%clk 0:01:52.8]} 23... Qxa1+ {[%clk 0:00:42.7]} 24.
Bxa1 {[%clk 0:01:53.7]} 24... Nd7 {[%clk 0:00:31.8]} 25. g3 {[%clk 0:01:41.5]}
25... Nb8 {[%clk 0:00:22.3]} 26. Bc3 {[%clk 0:01:32]} 26... Nc6 {[%clk
0:00:22.2]} 27. Kf1 {[%clk 0:01:29.9]} 27... f6 {[%clk 0:00:21.2]} 28. f4 {[%clk
0:01:26.1]} 28... Kf7 {[%clk 0:00:20.5]} 29. Be2 {[%clk 0:01:21.2]} 29... Ned8
{[%clk 0:00:18.8]} 30. Bg4 {[%clk 0:01:15.7]} 30... g6 {[%clk 0:00:18]} 31. h4
{[%clk 0:01:03.8]} 31... Bg7 {[%clk 0:00:15.1]} 32. Bh3 {[%clk 0:00:43]} 32...
Ke7 {[%clk 0:00:15.3]} 33. Ke2 {[%clk 0:00:42.8]} 33... Ne6 {[%clk 0:00:14.2]}
34. Kd3 {[%clk 0:00:39.1]} 34... Ncd8 {[%clk 0:00:11.5]} 35. Nb1 {[%clk
0:00:36.6]} 35... c5 {[%clk 0:00:11.6]} 36. b5 {[%clk 0:00:34.5]} 36... Nc7
{[%clk 0:00:09.6]} 37. Bd2 {[%clk 0:00:27.3]} 37... Nce6 {[%clk 0:00:07.6]} 38.
Nc3 {[%clk 0:00:27]} 38... Nc7 {[%clk 0:00:05.3]} 39. Na4 {[%clk 0:00:25.1]}
39... exf4 {[%clk 0:00:03.2]} 40. exf4 {[%clk 0:00:23.8]} 40... Nde6 {[%clk
0:00:03.2]} 41. Nxb6 {[%clk 0:00:21.8]} 41... Nd4 {[%clk 0:00:03.6]} 42. Be3
{[%clk 0:00:18.2]} 42... f5 {[%clk 0:00:03.6]} 43. exf5 {[%clk 0:00:15.1]} 43...
gxf5 {[%clk 0:00:03.1]} 44. Bxd4 {[%clk 0:00:14.4]} 44... Bxd4 {[%clk 0:00:04]}
45. Bxf5 {[%clk 0:00:13.6]} 45... Bf2 {[%clk 0:00:03.4]} 46. g4 {[%clk
0:00:10.4]} 46... Bxh4 {[%clk 0:00:03.2]} 47. Ke4 {[%clk 0:00:10.5]} 47... h6
{[%clk 0:00:03]} 48. Bc8 {[%clk 0:00:09.5]} 48... Bf6 {[%clk 0:00:02]} 49. Nd5+
{[%clk 0:00:09.5]} 49... Nxd5 {[%clk 0:00:02.1]} 50. Kxd5 {[%clk 0:00:10.2]}
50... Bd4 {[%clk 0:00:02.3]} 51. f5 {[%clk 0:00:10.5]} 51... Kd8 {[%clk
0:00:02.5]} 52. Be6 {[%clk 0:00:09.8]} 52... Be5 {[%clk 0:00:02.2]} 53. b6
{[%clk 0:00:09.5]} 53... Bf4 {[%clk 0:00:01.1]} 54. Kc6 {[%clk 0:00:09.9]} 54...
Be5 {[%clk 0:00:01.1]} 55. b7 {[%clk 0:00:07.7]} 55... d5 {[%clk 0:00:02]} 56.
Bxd5 {[%clk 0:00:06.7]} 56... Bb8 {[%clk 0:00:02.4]} 57. f6 {[%clk 0:00:06.5]}
1-0

[Event "Late-Titled-Tuesday-Blitz-March-12-2024"]
[Site "Chess.com"]
[Date "2024.03.12"]
[Round "6"]
[White "Cuchulin"]
[Black "HanSchut"]
[Result "0-1"]
[WhiteElo "2054"]
[BlackElo "2329"]
[TimeControl "180+1"]
[EndTime "15:06:32 PDT"]
[Termination "HanSchut won on time"]

1. d4 {[%clk 0:02:53.5]} 1... Nf6 {[%clk 0:02:59.4]} 2. Bf4 {[%clk 0:02:53.6]}
2... d5 {[%clk 0:02:58.7]} 3. e3 {[%clk 0:02:53.8]} 3... e6 {[%clk 0:02:59.3]}
4. Nf3 {[%clk 0:02:53.8]} 4... Bd6 {[%clk 0:02:59.8]} 5. Ne5 {[%clk 0:02:54.1]}
5... O-O {[%clk 0:02:56.2]} 6. Bd3 {[%clk 0:02:54]} 6... Ne4 {[%clk 0:02:52.4]}
7. Bxe4 {[%clk 0:02:51.2]} 7... dxe4 {[%clk 0:02:52.4]} 8. Nd2 {[%clk
0:02:51.3]} 8... f6 {[%clk 0:02:49.3]} 9. Nec4 {[%clk 0:02:51.1]} 9... Bxf4
{[%clk 0:02:47.4]} 10. exf4 {[%clk 0:02:51]} 10... f5 {[%clk 0:02:47.4]} 11. c3
{[%clk 0:02:50]} 11... Qh4 {[%clk 0:02:30.9]} 12. O-O {[%clk 0:02:42.9]} 12...
Nd7 {[%clk 0:02:30]} 13. g3 {[%clk 0:02:42.2]} 13... Qh3 {[%clk 0:02:28.6]} 14.
Re1 {[%clk 0:02:38.6]} 14... Nf6 {[%clk 0:02:27.8]} 15. Nf1 {[%clk 0:02:34.7]}
15... b6 {[%clk 0:02:17.4]} 16. Ne5 {[%clk 0:02:33.6]} 16... Bb7 {[%clk
0:02:15]} 17. Ne3 {[%clk 0:02:33.2]} 17... Rad8 {[%clk 0:02:07.7]} 18. Qe2
{[%clk 0:02:31.9]} 18... h5 {[%clk 0:02:05.4]} 19. Qf1 {[%clk 0:02:26.2]} 19...
Qxf1+ {[%clk 0:02:05.2]} 20. Kxf1 {[%clk 0:02:18.5]} 20... h4 {[%clk 0:01:58.9]}
21. Kg2 {[%clk 0:02:16.5]} 21... hxg3 {[%clk 0:01:37.6]} 22. hxg3 {[%clk
0:02:14.5]} 22... Nd7 {[%clk 0:01:35.1]} 23. Nxd7 {[%clk 0:01:51.5]} 23... Rxd7
{[%clk 0:01:34.4]} 24. Nc4 {[%clk 0:01:50.5]} 24... e3+ {[%clk 0:01:31.1]} 25.
f3 {[%clk 0:01:46.3]} 25... g5 {[%clk 0:01:18.5]} 26. fxg5 {[%clk 0:01:39.3]}
26... f4 {[%clk 0:01:18.6]} 27. Ne5 {[%clk 0:01:30.3]} 27... Rh7 {[%clk
0:01:12.6]} 28. gxf4 {[%clk 0:01:27.5]} 28... Rxf4 {[%clk 0:01:11.3]} 29. Rxe3
{[%clk 0:01:27.4]} 29... Rh5 {[%clk 0:01:05]} 30. g6 {[%clk 0:01:21.7]} 30...
Rg5+ {[%clk 0:01:00.4]} 31. Kf2 {[%clk 0:01:21.6]} 31... Rh4 {[%clk 0:00:56.3]}
32. Ng4 {[%clk 0:00:53.1]} 32... Rxg6 {[%clk 0:00:37.3]} 33. Rg1 {[%clk
0:00:51.8]} 33... Kh8 {[%clk 0:00:29.9]} 34. Re5 {[%clk 0:00:46.3]} 34... Rh3
{[%clk 0:00:20.6]} 35. Rg3 {[%clk 0:00:42.8]} 35... Rh1 {[%clk 0:00:15.3]} 36.
Re1 {[%clk 0:00:38.8]} 36... Rxe1 {[%clk 0:00:11.9]} 37. Kxe1 {[%clk 0:00:37.9]}
37... Bxf3 {[%clk 0:00:12.5]} 38. Ne5 {[%clk 0:00:37]} 38... Rxg3 {[%clk
0:00:12.5]} 39. Kf2 {[%clk 0:00:36.2]} 39... Rh3 {[%clk 0:00:13]} 40. Nxf3
{[%clk 0:00:35.9]} 40... Kg7 {[%clk 0:00:12.6]} 41. Ng5 {[%clk 0:00:35.3]} 41...
Rh2+ {[%clk 0:00:12.1]} 42. Ke3 {[%clk 0:00:33]} 42... Rxb2 {[%clk 0:00:13]} 43.
Nxe6+ {[%clk 0:00:32.6]} 43... Kf6 {[%clk 0:00:13.6]} 44. Nxc7 {[%clk
0:00:32.4]} 44... Rxa2 {[%clk 0:00:14.2]} 45. Kd3 {[%clk 0:00:30.4]} 45... Ke7
{[%clk 0:00:12.5]} 46. Kc4 {[%clk 0:00:29.3]} 46... Kd6 {[%clk 0:00:11.8]} 47.
Ne8+ {[%clk 0:00:25.2]} 47... Kc6 {[%clk 0:00:11.1]} 48. Nf6 {[%clk 0:00:21.7]}
48... Ra4+ {[%clk 0:00:10.2]} 49. Kb3 {[%clk 0:00:21.3]} 49... Ra5 {[%clk
0:00:10.7]} 50. Ne4 {[%clk 0:00:20.5]} 50... Rh5 {[%clk 0:00:09.7]} 51. Nd2
{[%clk 0:00:20.4]} 51... b5 {[%clk 0:00:10]} 52. Nf3 {[%clk 0:00:19.5]} 52...
Rh3 {[%clk 0:00:07.9]} 53. Ne5+ {[%clk 0:00:19.1]} 53... Kb6 {[%clk 0:00:08.6]}
54. Nd7+ {[%clk 0:00:18.8]} 54... Kc7 {[%clk 0:00:08.5]} 55. Nc5 {[%clk
0:00:18.7]} 55... a5 {[%clk 0:00:08.9]} 56. Kb2 {[%clk 0:00:13.3]} 56... Kc6
{[%clk 0:00:08.4]} 57. Ne4 {[%clk 0:00:09]} 57... Kd5 {[%clk 0:00:05.5]} 58. Nd2
{[%clk 0:00:04.8]} 58... Rh2 {[%clk 0:00:03.6]} 59. Kc2 {[%clk 0:00:03.3]} 59...
a4 {[%clk 0:00:04.2]} 0-1

[Event "Late-Titled-Tuesday-Blitz-March-12-2024"]
[Site "Chess.com"]
[Date "2024.03.12"]
[Round "6"]
[White "Lion-Al-Messi"]
[Black "MyDream003"]
[Result "0-1"]
[WhiteElo "2586"]
[BlackElo "2768"]
[TimeControl "180+1"]
[EndTime "15:06:36 PDT"]
[Termination "MyDream003 won on time"]

1. e4 {[%clk 0:03:00.9]} 1... c5 {[%clk 0:02:02.8]} 2. Nf3 {[%clk 0:03:00.4]}
2... d6 {[%clk 0:02:00.7]} 3. d4 {[%clk 0:03:00.4]} 3... cxd4 {[%clk 0:02:01.6]}
4. Nxd4 {[%clk 0:03:01.3]} 4... Nf6 {[%clk 0:02:01.7]} 5. Nc3 {[%clk 0:03:01.6]}
5... a6 {[%clk 0:02:01.1]} 6. h3 {[%clk 0:03:02.1]} 6... g6 {[%clk 0:01:58.7]}
7. Be2 {[%clk 0:03:01.7]} 7... Bg7 {[%clk 0:01:59]} 8. O-O {[%clk 0:03:01.9]}
8... O-O {[%clk 0:01:59.2]} 9. Be3 {[%clk 0:03:02.4]} 9... Nc6 {[%clk
0:01:53.9]} 10. Qd2 {[%clk 0:03:01.7]} 10... Nxd4 {[%clk 0:01:53.8]} 11. Bxd4
{[%clk 0:03:01.7]} 11... Be6 {[%clk 0:01:54.2]} 12. Rad1 {[%clk 0:03:01.2]}
12... Rc8 {[%clk 0:01:52.4]} 13. f4 {[%clk 0:03:01.2]} 13... Bc4 {[%clk
0:01:43.7]} 14. Bxc4 {[%clk 0:02:46]} 14... Rxc4 {[%clk 0:01:44.6]} 15. Qd3
{[%clk 0:02:31.5]} 15... b5 {[%clk 0:01:25.4]} 16. b3 {[%clk 0:02:31]} 16... Rc8
{[%clk 0:01:14.9]} 17. e5 {[%clk 0:02:30.5]} 17... dxe5 {[%clk 0:01:14.3]} 18.
fxe5 {[%clk 0:02:31.4]} 18... Nd5 {[%clk 0:01:14.6]} 19. Ne4 {[%clk 0:02:26.5]}
19... Nb4 {[%clk 0:01:13.9]} 20. Qd2 {[%clk 0:02:18.2]} 20... Nxc2 {[%clk
0:01:05.9]} 21. Bc3 {[%clk 0:02:15.5]} 21... Qxd2 {[%clk 0:01:05.3]} 22. Rxd2
{[%clk 0:02:16.4]} 22... Ne3 {[%clk 0:01:03.3]} 23. Rf3 {[%clk 0:02:14.9]} 23...
Nf5 {[%clk 0:01:02.4]} 24. g4 {[%clk 0:02:09.8]} 24... Nh4 {[%clk 0:01:02.7]}
25. Rfd3 {[%clk 0:02:08.9]} 25... Rc6 {[%clk 0:00:47.2]} 26. Kf2 {[%clk
0:02:08.2]} 26... h6 {[%clk 0:00:40.8]} 27. Kg3 {[%clk 0:02:05.1]} 27... g5
{[%clk 0:00:41.3]} 28. Kf2 {[%clk 0:01:44.9]} 28... Ng6 {[%clk 0:00:40.2]} 29.
Rd7 {[%clk 0:01:26.1]} 29... Re8 {[%clk 0:00:30.1]} 30. Bb4 {[%clk 0:00:47.2]}
30... Bxe5 {[%clk 0:00:28.1]} 31. Bc5 {[%clk 0:00:32.8]} 31... Kg7 {[%clk
0:00:27]} 32. b4 {[%clk 0:00:32.8]} 32... Re6 {[%clk 0:00:23.2]} 33. Ra7 {[%clk
0:00:22.6]} 33... Rc8 {[%clk 0:00:16.9]} 34. Rdd7 {[%clk 0:00:18.8]} 34... Bb8
{[%clk 0:00:16.1]} 35. Bd4+ {[%clk 0:00:16.3]} 35... Kf8 {[%clk 0:00:09.2]} 36.
Nc5 {[%clk 0:00:16.5]} 36... Bxa7 {[%clk 0:00:03.4]} 37. Nxe6+ {[%clk
0:00:16.3]} 37... fxe6 {[%clk 0:00:04.3]} 38. Rxa7 {[%clk 0:00:15.8]} 38... Rc2+
{[%clk 0:00:04.6]} 39. Ke3 {[%clk 0:00:14.5]} 39... Rxa2 {[%clk 0:00:05.5]} 40.
Bc5 {[%clk 0:00:12.9]} 40... Kf7 {[%clk 0:00:06.2]} 41. Ra8 {[%clk 0:00:08.8]}
41... Ra3+ {[%clk 0:00:06.5]} 42. Ke4 {[%clk 0:00:08.9]} 42... Nf4 {[%clk
0:00:06.6]} 43. h4 {[%clk 0:00:07.6]} 43... Nd5 {[%clk 0:00:05.5]} 44. hxg5
{[%clk 0:00:02.1]} 44... hxg5 {[%clk 0:00:06.3]} 45. Ra7 {[%clk 0:00:01.5]}
45... Ra4 {[%clk 0:00:05.6]} 46. Ke5 {[%clk 0:00:01.2]} 46... Ra1 {[%clk
0:00:05.2]} 47. Ke4 {[%clk 0:00:01.3]} 47... Re1+ {[%clk 0:00:05.5]} 48. Kf3
{[%clk 0:00:01.8]} 48... Ra1 {[%clk 0:00:05.4]} 49. Kg2 {[%clk 0:00:02.1]} 49...
Ra4 {[%clk 0:00:05.7]} 50. Kf3 {[%clk 0:00:01.1]} 50... Kf6 {[%clk 0:00:06.2]}
51. Rb7 {[%clk 0:00:01.3]} 51... Ra3+ {[%clk 0:00:06.5]} 52. Kg2 {[%clk
0:00:01.1]} 52... a5 {[%clk 0:00:06.7]} 0-1